fUSD/lending_fUSD_20240220
["ID","MTS","AMOUNT","RATE_DAILY","PERIOD"]
[314539132,1708411833580,-1022.84,0.00035616,2]
[314539133,1708411833590,-500.0,0.00035616,2]
[314539134,1708411833600,-910.29,0.00035616,2]
[314539135,1708411833610,-500.0,0.00035616,2]
[314539136,1708411833620,-500.0,0.00035616,2]
[314539137,1708411833631,-500.0,0.00035616,2]
[314539138,1708411833641,-500.0,0.00035616,2]
[314539139,1708411833651,-500.0,0.00035616,2]
[314539140,1708411833661,-500.0,0.00035616,2]
[314539141,1708411833671,-416.4909284,0.00035616,2]
[314539142,1708411833681,-392.88584406,0.00035616,2]
[314539143,1708411833691,-500.0,0.00035616,2]
[314539144,1708411833705,-500.0,0.00035616,2]
[314539145,1708411833715,-500.0,0.00035616,2]
[314539146,1708411833725,-500.0,0.00035616,2]
[314539147,1708411833736,-500.0,0.00035616,2]
[314539148,1708411833745,-500.0,0.00035616,2]
[314539149,1708411833756,-500.0,0.00035616,2]
[314539150,1708411833768,-500.0,0.00035616,2]
[314539151,1708411833777,-500.0,0.00035616,2]
[314539152,1708411833788,-500.0,0.00035616,2]
[314539153,1708411833797,-500.0,0.00035616,2]
[314539154,1708411833808,-500.0,0.00035616,2]
[314539155,1708411833819,-500.0,0.00035616,2]
[314539156,1708411833829,-500.0,0.00035616,2]
[314539157,1708411833840,-500.0,0.00035616,2]
[314539158,1708411833850,-548.6,0.00035616,2]
[314539159,1708411833861,-500.0,0.00035616,2]
[314539160,1708411833871,-500.0,0.00035616,2]
[314539161,1708411833881,-500.0,0.00035616,2]
[314539162,1708411833890,-500.0,0.00035616,2]
[314539163,1708411833900,-573.36394398,0.00035616,2]
[314539164,1708411833910,-500.0,0.00035616,2]
[314539165,1708411833920,-500.0,0.00035616,2]
[314539166,1708411833930,-500.0,0.00035616,2]
[314539167,1708411833940,-500.0,0.00035616,2]
[314539168,1708411833950,-500.0,0.00035616,2]
[314539169,1708411833960,-500.0,0.00035616,2]
[314539170,1708411833971,-500.0,0.00035616,2]
[314539171,1708411833981,-500.0,0.00035616,2]
[314539172,1708411833991,-500.0,0.00035616,2]
[314539173,1708411834000,-500.0,0.00035616,2]
[314539174,1708411834010,-500.0,0.00035616,2]
[314539175,1708411834020,-500.0,0.00035616,2]
[314539176,1708411834030,-500.0,0.00035616,2]
[314539177,1708411834040,-500.0,0.00035616,2]
[314539178,1708411834049,-500.0,0.00035616,2]
[314539179,1708411834059,-500.0,0.00035616,2]
[314539180,1708411834069,-500.0,0.00035616,2]
[314539181,1708411834079,-500.0,0.00035616,2]
[314539182,1708411834088,-500.0,0.00035616,2]
[314539183,1708411834098,-500.0,0.00035616,2]
[314539184,1708411834108,-500.0,0.00035616,2]
[314539185,1708411834118,-500.0,0.00035616,2]
[314539186,1708411834127,-500.0,0.00035616,2]
[314539187,1708411834141,-500.0,0.00035616,2]
[314539188,1708411834151,-500.0,0.00035616,2]
[314539189,1708411834161,-500.0,0.00035616,2]
[314539190,1708411834171,-500.0,0.00035616,2]
[314539191,1708411834182,-500.0,0.00035616,2]
[314539192,1708411834192,-500.0,0.00035616,2]
[314539193,1708411834202,-500.0,0.00035616,2]
[314539194,1708411834213,-500.0,0.00035616,2]
[314539195,1708411834224,-500.0,0.00035616,2]
[314539196,1708411834233,-500.0,0.00035616,2]
[314539197,1708411834244,-500.0,0.00035616,2]
[314539198,1708411834256,-500.0,0.00035616,2]
[314539199,1708411834269,-500.0,0.00035616,2]
[314539200,1708411834279,-500.0,0.00035616,2]
[314539201,1708411834289,-500.0,0.00035616,2]
[314539202,1708411834301,-500.0,0.00035616,2]
[314539203,1708411834311,-500.0,0.00035616,2]
[314539204,1708411834322,-500.0,0.00035616,2]
[314539205,1708411834331,-500.0,0.00035616,2]
[314539206,1708411834341,-500.0,0.00035616,2]
[314539207,1708411834352,-500.0,0.00035616,2]
[314539208,1708411834362,-500.0,0.00035616,2]
[314539209,1708411834373,-500.0,0.00035616,2]
[314539210,1708411834383,-500.0,0.00035616,2]
[314539211,1708411834522,-500.0,0.00035616,2]
[314539212,1708411834532,-500.0,0.00035616,2]
[314539213,1708411834541,-500.0,0.00035616,2]
[314539214,1708411834550,-500.0,0.00035616,2]
[314539215,1708411834559,-500.0,0.00035616,2]
[314539216,1708411834569,-500.0,0.00035616,2]
[314539217,1708411834578,-467.78574044,0.00035616,2]
[314539218,1708411834587,-500.0,0.00035616,2]
[314539219,1708411834596,-500.0,0.00035616,2]
[314539220,1708411834606,-500.0,0.00035616,2]
[314539221,1708411834615,-500.0,0.00035616,2]
[314539222,1708411834624,-150.0,0.00035616,2]
[314539223,1708411834633,-500.0,0.00035616,2]
[314539224,1708411834642,-500.0,0.00035616,2]
[314539225,1708411834652,-500.0,0.00035616,2]
[314539226,1708411834661,-500.0,0.00035616,2]
[314539227,1708411834670,-500.0,0.00035616,2]
[314539228,1708411834679,-500.0,0.00035616,2]
[314539229,1708411834688,-500.0,0.00035616,2]
[314539230,1708411834697,-524.26,0.00035616,2]
[314539231,1708411834709,-500.0,0.00035616,2]
[314539232,1708411834719,-500.0,0.00035616,2]
[314539233,1708411834729,-500.0,0.00035616,2]
[314539234,1708411834739,-500.0,0.00035616,2]
[314539235,1708411834749,-621.4585322,0.00035616,2]
[314539236,1708411834760,-500.0,0.00035616,2]
[314539237,1708411834772,-500.0,0.00035616,2]
[314539238,1708411834781,-500.0,0.00035616,2]
[314539239,1708411834790,-500.0,0.00035616,2]
[314539240,1708411834799,-500.0,0.00035616,2]
[314539241,1708411834808,-500.0,0.00035616,2]
[314539242,1708411834818,-500.0,0.00035616,2]
[314539243,1708411834827,-500.0,0.00035616,2]
[314539244,1708411834836,-500.0,0.00035616,2]
[314539245,1708411834846,-500.0,0.00035616,2]
[314539246,1708411834855,-500.0,0.00035616,2]
[314539247,1708411834865,-500.0,0.00035616,2]
[314539248,1708411834875,-500.0,0.00035616,2]
[314539249,1708411834884,-500.0,0.00035616,2]
[314539250,1708411834894,-500.0,0.00035616,2]
[314539251,1708411834903,-500.0,0.00035616,2]
[314539252,1708411834912,-500.0,0.00035616,2]
[314539253,1708411834921,-500.0,0.00035616,2]
[314539254,1708411834930,-628.48322362,0.00035616,2]
[314539255,1708411834940,-500.0,0.00035616,2]
[314539256,1708411834949,-500.0,0.00035616,2]
[314539257,1708411834959,-500.0,0.00035616,2]
[314539258,1708411834968,-500.0,0.00035616,2]
[314539259,1708411834978,-500.0,0.00035616,2]
[314539260,1708411834987,-500.0,0.00035616,2]
[314539261,1708411834996,-500.0,0.00035616,2]
[314539262,1708411835006,-500.0,0.00035616,2]
[314539263,1708411835015,-500.0,0.00035616,2]
[314539264,1708411835025,-578.31,0.00035616,2]
[314539265,1708411835034,-500.0,0.00035616,2]
[314539266,1708411835044,-500.0,0.00035616,2]
[314539267,1708411835053,-500.0,0.00035616,2]
[314539268,1708411835063,-500.0,0.00035616,2]
[314539269,1708411835073,-500.0,0.00035616,2]
[314539270,1708411835083,-500.0,0.00035616,2]
[314539271,1708411835092,-502.74,0.00035616,2]
[314539272,1708411835102,-500.0,0.00035616,2]
[314539273,1708411835111,-500.0,0.00035616,2]
[314539274,1708411835120,-500.0,0.00035616,2]
[314539275,1708411835130,-500.0,0.00035616,2]
[314539276,1708411835140,-838.91,0.00035616,2]
[314539277,1708411835149,-550.63,0.00035616,2]
[314539278,1708411835159,-500.0,0.00035616,2]
[314539279,1708411835170,-976.39,0.00035616,2]
[314539280,1708411835180,-500.0,0.00035616,2]
[314539281,1708411835201,-527.88058306,0.00035616,2]
[314539282,1708411835210,-500.0,0.00035616,2]
[314539283,1708411835219,-500.0,0.00035616,2]
[314539284,1708411835228,-500.0,0.00035616,2]
[314539285,1708411835237,-500.0,0.00035616,2]
[314539286,1708411835247,-500.0,0.00035616,2]
[314539287,1708411835256,-500.0,0.00035616,2]
[314539288,1708411835266,-553.15,0.00035616,2]
[314539289,1708411835275,-500.0,0.00035616,2]
[314539290,1708411835284,-500.0,0.00035616,2]
[314539291,1708411835293,-500.0,0.00035616,2]
[314539292,1708411835302,-500.0,0.00035616,2]
[314539293,1708411835312,-500.0,0.00035616,2]
[314539294,1708411835322,-500.0,0.00035616,2]
[314539295,1708411835331,-886.81,0.00035616,2]
[314539296,1708411835341,-500.0,0.00035616,2]
[314539297,1708411835350,-1263.6,0.00035616,2]
[314539298,1708411835359,-500.0,0.00035616,2]
[314539299,1708411835368,-500.0,0.00035616,2]
[314539300,1708411835378,-500.0,0.00035616,2]
[314539301,1708411835388,-500.0,0.00035616,2]
[314539302,1708411835397,-598.79,0.00035616,2]
[314539303,1708411835406,-500.0,0.00035616,2]
[314539304,1708411835416,-938.58,0.00035616,2]
[314539305,1708411835425,-500.0,0.00035616,2]
[314539306,1708411835434,-707.49,0.00035616,2]
[314539307,1708411835444,-989.24,0.00035616,2]
[314539308,1708411835453,-500.0,0.00035616,2]
[314539309,1708411835462,-500.0,0.00035616,2]
[314539310,1708411835471,-1154.02,0.00035616,2]
[314539311,1708411835480,-1017.36,0.00035616,2]
[314539312,1708411835489,-500.0,0.00035616,2]
[314539313,1708411835499,-500.0,0.00035616,2]
[314539314,1708411835509,-500.0,0.00035616,2]
[314539315,1708411835518,-500.0,0.00035616,2]
[314539316,1708411835527,-500.0,0.00035616,2]
[314539317,1708411835537,-654.91,0.00035616,2]
[314539318,1708411835546,-500.0,0.00035616,2]
[314539319,1708411835555,-500.0,0.00035616,2]
[314539320,1708411835565,-1183.27,0.00035616,2]
[314539321,1708411835575,-668.7,0.00035616,2]
[314539322,1708411835585,-500.0,0.00035616,2]
[314539323,1708411835594,-670.28,0.00035616,2]
[314539324,1708411835604,-1301.3,0.00035616,2]
[314539325,1708411835615,-500.0,0.00035616,2]
[314539326,1708411835625,-608.77042478,0.00035616,2]
[314539327,1708411835635,-500.0,0.00035616,2]
[314539328,1708411835644,-2677.57,0.00035616,2]
[314539329,1708411835654,-1260.22,0.00035616,2]
[314539330,1708411835663,-500.0,0.00035616,2]
[314539331,1708411835673,-500.0,0.00035616,2]
[314539332,1708411835682,-807.43,0.00035616,2]
[314539333,1708411835691,-500.0,0.00035616,2]
[314539334,1708411835701,-650.92,0.00035616,2]
[314539335,1708411835710,-500.0,0.00035616,2]
[314539336,1708411835720,-1557.17,0.00035616,2]
[314539337,1708411835730,-500.0,0.00035616,2]
[314539338,1708411835739,-500.0,0.00035616,2]
[314539339,1708411835749,-1101.28,0.00035616,2]
[314539340,1708411835758,-500.0,0.00035616,2]
[314539341,1708411835770,-500.0,0.00035616,2]
[314539342,1708411835779,-500.0,0.00035616,2]
[314539343,1708411835789,-500.0,0.00035616,2]
[314539344,1708411835798,-1147.15,0.00035616,2]
[314539345,1708411835807,-500.0,0.00035616,2]
[314539346,1708411835819,-500.0,0.00035616,2]
[314539347,1708411835828,-3126.82,0.00035616,2]
[314539348,1708411835838,-984.85,0.00035616,2]
[314539349,1708411835848,-500.0,0.00035616,2]
[314539350,1708411835858,-610.56,0.00035616,2]
[314539351,1708411835867,-500.0,0.00035616,2]
[314539352,1708411835877,-500.0,0.00035616,2]
[314539353,1708411835886,-500.0,0.00035616,2]
[314539354,1708411835895,-500.0,0.00035616,2]
[314539355,1708411835905,-1070.76,0.00035616,2]
[314539356,1708411835914,-1065.82,0.00035616,2]
[314539357,1708411835923,-500.0,0.00035616,2]
[314539358,1708411835932,-500.0,0.00035616,2]
[314539359,1708411835942,-500.0,0.00035616,2]
[314539360,1708411835952,-883.93,0.00035616,2]
[314539361,1708411835961,-1548.6,0.00035616,2]
[314539362,1708411835971,-500.0,0.00035616,2]
[314539363,1708411835981,-500.0,0.00035616,2]
[314539364,1708411835990,-1069.75,0.00035616,2]
[314539365,1708411836000,-500.0,0.00035616,2]
[314539366,1708411836009,-500.0,0.00035616,2]
[314539367,1708411836019,-500.0,0.00035616,2]
[314539368,1708411836029,-14843.7,0.00035616,2]
[314539369,1708411836039,-500.0,0.00035616,2]
[314539370,1708411836048,-6156.03,0.00035616,2]
[314539371,1708411836058,-500.0,0.00035616,2]
[314539372,1708411836068,-607.53,0.00035616,2]
[314539373,1708411836078,-500.0,0.00035616,2]
[314539374,1708411836088,-810.41,0.00035616,2]
[314539375,1708411836098,-478.36899329,0.00035616,2]
[314539376,1708411836107,-2045.71,0.00035616,2]
[314539377,1708411836116,-500.0,0.00035616,2]
[314539378,1708411836125,-500.0,0.00035616,2]
[314539379,1708411836134,-729.45,0.00035616,2]
[314539380,1708411836144,-500.0,0.00035616,2]
[314539381,1708411836153,-500.0,0.00035616,2]
[314539382,1708411836162,-1283.56,0.00035616,2]
[314539383,1708411836172,-500.0,0.00035616,2]
[314539384,1708411836182,-715.74,0.00035616,2]
[314539385,1708411836191,-2005.96,0.00035616,2]
[314539386,1708411836200,-500.0,0.00035616,2]
[314539387,1708411836210,-500.0,0.00035616,2]
[314539388,1708411836219,-500.0,0.00035616,2]
[314539389,1708411836229,-500.0,0.00035616,2]
[314539390,1708411836238,-788.97,0.00035616,2]
[314539391,1708411836247,-1018.12,0.00035616,2]
[314539392,1708411836257,-707.86,0.00035616,2]
[314539393,1708411836266,-500.0,0.00035616,2]
[314539394,1708411836276,-536.07,0.00035616,2]
[314539395,1708411836285,-500.0,0.00035616,2]
[314539396,1708411836294,-500.0,0.00035616,2]
[314539397,1708411836303,-500.0,0.00035616,2]
[314539398,1708411836313,-500.0,0.00035616,2]
[314539399,1708411836322,-500.0,0.00035616,2]
[314539400,1708411836331,-500.69,0.00035616,2]
[314539401,1708411836340,-500.0,0.00035616,2]
[314539402,1708411836350,-1154.99,0.00035616,2]
[314539403,1708411836359,-877.31,0.00035616,2]
[314539404,1708411836368,-643.38,0.00035616,2]
[314539405,1708411836377,-500.0,0.00035616,2]
[314539406,1708411836387,-500.0,0.00035616,2]
[314539407,1708411836396,-500.0,0.00035616,2]
[314539408,1708411836404,-500.0,0.00035616,2]
[314539409,1708411836414,-2929.78,0.00035616,2]
[314539410,1708411836422,-500.0,0.00035616,2]
[314539411,1708411836432,-500.0,0.00035616,2]
[314539412,1708411836441,-500.0,0.00035616,2]
[314539413,1708411836450,-500.0,0.00035616,2]
[314539414,1708411836459,-4536.19,0.00035616,2]
[314539415,1708411836468,-553.45,0.00035616,2]
[314539416,1708411836477,-775.81,0.00035616,2]
[314539417,1708411836486,-726.1,0.00035616,2]
[314539418,1708411836495,-500.0,0.00035616,2]
[314539419,1708411836505,-697.95,0.00035616,2]
[314539420,1708411836514,-500.0,0.00035616,2]
[314539421,1708411836523,-500.0,0.00035616,2]
[314539422,1708411836532,-500.0,0.00035616,2]
[314539423,1708411836541,-848.02,0.00035616,2]
[314539424,1708411836550,-500.0,0.00035616,2]
[314539425,1708411836559,-500.0,0.00035616,2]
[314539426,1708411836570,-500.0,0.00035616,2]
[314539427,1708411836579,-500.0,0.00035616,2]
[314539428,1708411836588,-609.53,0.00035616,2]
[314539429,1708411836597,-500.0,0.00035616,2]
[314539430,1708411836606,-500.0,0.00035616,2]
[314539431,1708411836615,-837.07,0.00035616,2]
[314539432,1708411836624,-1327.38,0.00035616,2]
[314539433,1708411836633,-2344.43,0.00035616,2]
[314539434,1708411836643,-500.0,0.00035616,2]
[314539435,1708411836652,-1275.23,0.00035616,2]
[314539436,1708411836661,-2000.27,0.00035616,2]
[314539437,1708411836670,-2289.28,0.00035616,2]
[314539438,1708411836680,-500.0,0.00035616,2]
[314539439,1708411836688,-611.02,0.00035616,2]
[314539440,1708411836698,-500.0,0.00035616,2]
[314539441,1708411836707,-753.08,0.00035616,2]
[314539442,1708411836716,-500.0,0.00035616,2]
[314539443,1708411836725,-630.26,0.00035616,2]
[314539444,1708411836734,-500.0,0.00035616,2]
[314539445,1708411836743,-500.0,0.00035616,2]
[314539446,1708411836752,-610.78,0.00035616,2]
[314539447,1708411836761,-705.71,0.00035616,2]
[314539448,1708411836771,-842.04,0.00035616,2]
[314539449,1708411836780,-2532.64,0.00035616,2]
[314539450,1708411836789,-500.0,0.00035616,2]
[314539451,1708411836799,-500.0,0.00035616,2]
[314539452,1708411836808,-500.0,0.00035616,2]
[314539453,1708411836818,-500.0,0.00035616,2]
[314539454,1708411836828,-500.0,0.00035616,2]
[314539455,1708411836837,-716.77,0.00035616,2]
[314539456,1708411836847,-500.0,0.00035616,2]
[314539457,1708411836856,-500.0,0.00035616,2]
[314539458,1708411836866,-500.0,0.00035616,2]
[314539459,1708411836875,-1124.22,0.00035616,2]
[314539460,1708411836884,-500.0,0.00035616,2]
[314539461,1708411836894,-500.0,0.00035616,2]
[314539462,1708411836903,-1012.88,0.00035616,2]
[314539463,1708411836912,-970.85,0.00035616,2]
[314539464,1708411836921,-1716.19,0.00035616,2]
[314539465,1708411836930,-500.0,0.00035616,2]
[314539466,1708411836939,-500.0,0.00035616,2]
[314539467,1708411836948,-500.0,0.00035616,2]
[314539468,1708411836957,-500.0,0.00035616,2]
[314539469,1708411836967,-500.0,0.00035616,2]
[314539470,1708411836976,-691.21,0.00035616,2]
[314539471,1708411836985,-2284.06,0.00035616,2]
[314539472,1708411836995,-1159.36,0.00035616,2]
[314539473,1708411837004,-500.0,0.00035616,2]
[314539474,1708411837014,-712.39,0.00035616,2]
[314539475,1708411837024,-500.0,0.00035616,2]
[314539476,1708411837034,-816.59,0.00035616,2]
[314539477,1708411837043,-500.0,0.00035616,2]
[314539478,1708411837052,-500.0,0.00035616,2]
[314539479,1708411837061,-817.0,0.00035616,2]
[314539480,1708411837071,-500.0,0.00035616,2]
[314539481,1708411837080,-1377.68,0.00035616,2]
[314539482,1708411837089,-500.0,0.00035616,2]
[314539483,1708411837099,-500.0,0.00035616,2]
[314539484,1708411837108,-500.0,0.00035616,2]
[314539485,1708411837117,-698.35,0.00035616,2]
[314539486,1708411837126,-500.0,0.00035616,2]
[314539487,1708411837136,-500.0,0.00035616,2]
[314539488,1708411837145,-843.78,0.00035616,2]
[314539489,1708411837154,-663.83,0.00035616,2]
[314539490,1708411837163,-796.0,0.00035616,2]
[314539491,1708411837172,-500.0,0.00035616,2]
[314539492,1708411837181,-3676.53,0.00035616,2]
[314539493,1708411837190,-500.0,0.00035616,2]
[314539494,1708411837199,-500.0,0.00035616,2]
[314539495,1708411837208,-509.78136357,0.00035616,2]
[314539496,1708411837217,-500.0,0.00035616,2]
[314539497,1708411837227,-500.0,0.00035616,2]
[314539498,1708411837236,-500.0,0.00035616,2]
[314539499,1708411837246,-1883.21,0.00035616,2]
[314539500,1708411837255,-500.0,0.00035616,2]
[314539501,1708411837265,-500.0,0.00035616,2]
[314539502,1708411837275,-5824.02,0.00035616,2]
[314539503,1708411837284,-500.0,0.00035616,2]
[314539504,1708411837294,-597.18,0.00035616,2]
[314539505,1708411837303,-500.0,0.00035616,2]
[314539506,1708411837313,-500.0,0.00035616,2]
[314539507,1708411837324,-807.52,0.00035616,2]
[314539508,1708411837333,-1102.3,0.00035616,2]
[314539509,1708411837343,-500.0,0.00035616,2]
[314539510,1708411837354,-500.0,0.00035616,2]
[314539511,1708411837364,-500.0,0.00035616,2]
[314539512,1708411837374,-501.22,0.00035616,2]
[314539513,1708411837384,-500.0,0.00035616,2]
[314539514,1708411837393,-566.92,0.00035616,2]
[314539515,1708411837403,-500.0,0.00035616,2]
[314539516,1708411837412,-500.0,0.00035616,2]
[314539517,1708411837422,-500.0,0.00035616,2]
[314539518,1708411837432,-500.0,0.00035616,2]
[314539519,1708411837442,-1224.12,0.00035616,2]
[314539520,1708411837451,-500.0,0.00035616,2]
[314539521,1708411837460,-500.0,0.00035616,2]
[314539522,1708411837470,-2546.25,0.00035616,2]
[314539523,1708411837479,-560.59,0.00035616,2]
[314539524,1708411837489,-500.0,0.00035616,2]
[314539525,1708411837499,-500.0,0.00035616,2]
[314539526,1708411837509,-500.0,0.00035616,2]
[314539527,1708411837518,-500.0,0.00035616,2]
[314539528,1708411837528,-500.0,0.00035616,2]
[314539529,1708411837537,-610.57,0.00035616,2]
[314539530,1708411837547,-500.0,0.00035616,2]
[314539531,1708411837557,-500.0,0.00035616,2]
[314539532,1708411837566,-500.0,0.00035616,2]
[314539533,1708411837576,-500.0,0.00035616,2]
[314539534,1708411837586,-589.71,0.00035616,2]
[314539535,1708411837595,-1085.54,0.00035616,2]
[314539536,1708411837605,-1251.58,0.00035616,2]
[314539537,1708411837614,-2584.84,0.00035616,2]
[314539538,1708411837624,-795.38,0.00035616,2]
[314539539,1708411837633,-500.0,0.00035616,2]
[314539540,1708411837643,-4519.14,0.00035616,2]
[314539541,1708411837653,-500.0,0.00035616,2]
[314539542,1708411837662,-667.47,0.00035616,2]
[314539543,1708411837672,-500.0,0.00035616,2]
[314539544,1708411837681,-500.0,0.00035616,2]
[314539545,1708411837691,-577.37,0.00035616,2]
[314539546,1708411837701,-1099.0,0.00035616,2]
[314539547,1708411837711,-500.0,0.00035616,2]
[314539548,1708411837720,-500.0,0.00035616,2]
[314539549,1708411837730,-500.0,0.00035616,2]
[314539550,1708411837739,-878.48,0.00035616,2]
[314539551,1708411837749,-500.0,0.00035616,2]
[314539552,1708411837759,-500.0,0.00035616,2]
[314539553,1708411837770,-500.0,0.00035616,2]
[314539554,1708411837780,-1117.3,0.00035616,2]
[314539555,1708411837790,-500.0,0.00035616,2]
[314539556,1708411837799,-540.14,0.00035616,2]
[314539558,1708411837809,-500.0,0.00035616,2]
[314539559,1708411837819,-500.0,0.00035616,2]
[314539560,1708411837829,-500.0,0.00035616,2]
[314539561,1708411837838,-500.0,0.00035616,2]
[314539562,1708411837848,-500.0,0.00035616,2]
[314539563,1708411837858,-500.0,0.00035616,2]
[314539564,1708411837867,-500.0,0.00035616,2]
[314539566,1708411837877,-178.18249066,0.00035616,2]
[314539567,1708411837887,-1962.97,0.00035632,2]
[314539568,1708411837896,-1962.97,0.00035632,2]
[314539569,1708411837906,-1962.97,0.00035632,2]
[314539570,1708411837915,-1962.97,0.00035632,2]
[314539571,1708411837925,-1962.97,0.00035632,2]
[314539572,1708411837934,-1962.97,0.00035632,2]
[314539573,1708411837944,-1962.97,0.00035632,2]
[314539574,1708411837953,-1962.97,0.00035632,2]
[314539576,1708411837963,-1962.97,0.00035632,2]
[314539577,1708411837972,-1962.97,0.00035632,2]
[314539578,1708411837982,-1962.97,0.00035632,2]
[314539579,1708411837991,-1962.97,0.00035632,2]
[314539580,1708411838001,-1962.97,0.00035632,2]
[314539581,1708411838011,-1962.97,0.00035632,2]
[314539582,1708411838020,-1962.97,0.00035632,2]
[314539583,1708411838030,-1962.99060127,0.00035632,2]
[314539584,1708411838039,-176.04729528,0.0003569,2]
[314539585,1708411838049,-528.19436425,0.0003569,2]
[314539586,1708411838058,-151.0212031,0.00035698,2]
[314539587,1708411838068,-3159.84971322,0.00035698,8]
[314539588,1708411838078,-10927.7563473,0.0003579,2]
[314539589,1708411838088,-169423.4449926,0.0003579,2]
[314539590,1708411838097,-2962.5643632,0.0003579,2]
[314539591,1708411838107,-2415.9236061,0.0003579,2]
[314539592,1708411838117,-121366.61939349,0.0003579,2]
[314539599,1708411838508,-562.4996314,0.0003579,2]
[314539600,1708411838529,-364.62176732,0.0003579,2]
[314539601,1708411838542,-350.0,0.0003579,2]
[314539602,1708411838554,-122356.25920779,0.0003579,2]
[314539603,1708411838564,-814.04,0.00035798,2]
[314539604,1708411838574,-151.0212031,0.00035798,2]
[314539605,1708411838583,-539.16595175,0.00035799,2]
[314539606,1708411838593,-7030.89332951,0.000358,2]
[314539607,1708411838614,-5153.6742,0.000358,2]
[314539608,1708411838626,-512.32434185,0.000358,2]
[314539609,1708411838638,-972.94266333,0.000358,2]
[314539610,1708411838651,-7255.99965989,0.000358,2]
[314539611,1708411838661,-261.5699335,0.000358,2]
[314539612,1708411838683,-1738.4300665,0.000358,2]
[314539613,1708411838694,-200.0,0.000358,2]
[314539614,1708411838705,-2000.0,0.000358,2]
[314539615,1708411838715,-200.0,0.000358,2]
[314539616,1708411838725,-1722.64457,0.000358,2]
[314539617,1708411838735,-162.38833905,0.00035802,2]
[314539618,1708411838745,-4979.89112243,0.00035802,2]
[314539619,1708411838755,-289.58115424,0.00035802,4]
[314539620,1708411838769,-1707.06474778,0.00035835,2]
[314539621,1708411840556,-1773.91,0.00031623,10]
[314539622,1708411840565,-500.0,0.00035616,2]
[314539623,1708411840575,-500.0,0.00035616,2]
[314539624,1708411840584,-500.0,0.00035616,2]
[314539625,1708411840594,-500.0,0.00035616,2]
[314539626,1708411840603,-500.0,0.00035616,2]
[314539627,1708411840612,-500.0,0.00035616,2]
[314539628,1708411840621,-300.0,0.00035799,2]
[314539629,1708411840630,-1256.84132002,0.00035835,2]
[314539630,1708411840640,-6618.4648609,0.00035835,2]
[314539631,1708411840649,-39212.213349,0.00035835,2]
[314539632,1708411840658,-176.04729528,0.00035859,2]
[314539633,1708411840668,-266.4343649,0.00035888,4]
[314539634,1708411840677,-1000.0,0.00035889,2]
[314539635,1708411840686,-2706.23433383,0.0003589,2]
[314539636,1708411840695,-500.0,0.0003589,2]
[314539637,1708411840705,-500.0,0.0003589,2]
[314539638,1708411840714,-500.0,0.0003589,2]
[314539639,1708411840723,-500.0,0.0003589,2]
[314539640,1708411840732,-500.0,0.0003589,2]